fUSD/lending_fUSD_20260324
["ID","MTS","AMOUNT","RATE_DAILY","PERIOD"]
[408863346,1774345837990,-500.0,0.00013565,2]
[408863347,1774345837999,-500.0,0.00013565,2]
[408863348,1774345838008,-500.0,0.00013565,2]
[408863349,1774345838017,-500.0,0.00013565,2]
[408863351,1774345838026,-500.0,0.00013565,2]
[408863353,1774345838036,-500.0,0.00013565,2]
[408863355,1774345838045,-500.0,0.00013565,2]
[408863357,1774345838053,-500.0,0.00013565,2]
[408863359,1774345838062,-500.0,0.00013565,2]
[408863361,1774345838071,-500.0,0.00013565,2]
[408863362,1774345838080,-500.0,0.00013565,2]
[408863364,1774345838089,-500.0,0.00013565,2]
[408863366,1774345838098,-132006.48841131,0.00013566,2]
[408863396,1774345840173,-530828.19161494,0.00013566,2]
[408863397,1774345840182,-16431.9685,0.00013566,2]
[408863398,1774345840191,-317.65526621,0.000136,2]
[408863399,1774345840200,-872.03502059,0.000136,2]
[408863400,1774345840210,-1032.38038276,0.000136,2]
[408863401,1774345840219,-675.01782448,0.000136,2]
[408863402,1774345840229,-1113.80406822,0.000136,2]
[408863403,1774345840239,-5533.93584235,0.00013656,2]
[408863404,1774345840248,-150.0,0.00013665,2]
[408863405,1774345840257,-5440.14970079,0.00013666,2]
[408863406,1774345840266,-38602.0485,0.00013666,2]
[408863407,1774345840276,-219.57473757,0.00013666,2]
[408863408,1774345840286,-526.50753821,0.00013666,2]
[408863409,1774345840295,-703.05437842,0.00013666,2]
[408863410,1774345840305,-165.89980803,0.00013666,2]
[408863411,1774345840315,-154.63,0.00013699,2]
[408863412,1774345840324,-4522.0441,0.00013726,2]
[408863413,1774345840334,-201.77324607,0.00013756,2]
[408863414,1774345840343,-230.61280248,0.00013757,2]
[408863415,1774345840353,-509.528,0.00013764,2]
[408863416,1774345840362,-500.0,0.00013764,2]
[408863417,1774345840372,-171.5420387,0.00013764,2]
[408863418,1774345840382,-562.62676695,0.00013764,2]
[408863419,1774345840391,-500.0,0.00013765,2]
[408863420,1774345840400,-500.0,0.00013765,2]
[408863421,1774345840409,-500.0,0.00013765,2]
[408863422,1774345840418,-500.0,0.00013765,2]
[408863423,1774345840427,-500.0,0.00013765,2]
[408863424,1774345840442,-500.0,0.00013765,2]
[408863425,1774345840451,-500.0,0.00013765,2]
[408863426,1774345840461,-500.0,0.00013765,2]
[408863427,1774345840470,-500.0,0.00013765,2]
[408863428,1774345840480,-500.0,0.00013765,2]
[408863429,1774345840489,-500.0,0.00013765,2]
[408863430,1774345840498,-500.0,0.00013765,2]
[408863431,1774345840509,-500.0,0.00013765,2]
[408863432,1774345840518,-500.0,0.00013765,2]
[408863433,1774345840528,-500.0,0.00013765,2]
[408863434,1774345840537,-500.0,0.00013765,2]
[408863435,1774345840546,-500.0,0.00013765,2]
[408863436,1774345840555,-500.0,0.00013765,2]
[408863437,1774345840565,-156.44,0.000138,2]
[408863438,1774345840574,-162.3,0.000138,2]
[408863439,1774345840583,-563.70890882,0.00013864,2]
[408863440,1774345840592,-28386.9044,0.00013866,2]
[408863441,1774345840601,-1000.0,0.00013866,2]
[408863442,1774345840611,-500.0,0.00013873,2]
[408863443,1774345840620,-214.75693323,0.00013873,2]
[408863444,1774345840629,-348.67349795,0.00013873,2]
[408863445,1774345840638,-500.0,0.00013873,2]
[408863446,1774345840647,-547.70188919,0.00013873,2]
[408863447,1774345840656,-500.0,0.00013873,2]
[408863448,1774345840666,-500.0,0.00013873,2]
[408863449,1774345840676,-500.0,0.00013873,2]
[408863450,1774345840685,-985.35755768,0.00013893,2]
[408863451,1774345840695,-402.02,0.000139,2]
[408863452,1774345840704,-3391.82489226,0.00013914,2]
[408863453,1774345840713,-526.50753818,0.00013914,2]
[408863454,1774345840722,-500.0,0.00013965,2]
[408863455,1774345840731,-405.4389704,0.00013965,2]
[408863456,1774345840741,-257.73702656,0.00013965,2]
[408863457,1774345840750,-500.0,0.00013965,2]
[408863458,1774345840759,-500.0,0.00013965,2]
[408863459,1774345840768,-500.0,0.00013965,2]
[408863460,1774345840778,-604.01853711,0.00013965,2]
[408863461,1774345840786,-200.0,0.00013993,2]
[408863462,1774345840795,-529.0,0.00014,2]
[408863463,1774345840805,-178.68,0.000141,2]
[408863464,1774345840813,-171.5,0.000141,2]
[408863465,1774345840823,-3391.82489226,0.00014162,2]
[408863466,1774345840832,-526.50753818,0.00014162,2]
[408863467,1774345840841,-1200.0,0.00014338,2]
[408863468,1774345840850,-3391.82489226,0.00014411,2]
[408863469,1774345840859,-526.50753818,0.00014411,2]
[408863470,1774345840868,-1000.0,0.00014421,2]
[408863471,1774345840878,-500.0,0.00014421,2]
[408863472,1774345840887,-1000.0,0.00014421,2]
[408863473,1774345840896,-1000.0,0.00014421,2]
[408863474,1774345840905,-500.0,0.00014421,2]
[408863475,1774345840914,-157.48,0.00014614,2]
[408863476,1774345840923,-3391.82489226,0.00014659,2]
[408863477,1774345840932,-526.50753818,0.00014659,2]
[408863478,1774345840942,-703.0543784,0.00014783,2]
[408863479,1774345840950,-255.0,0.00014785,2]
[408863480,1774345840959,-500.0,0.00014881,2]
[408863481,1774345840968,-9552.16786547,0.00014881,2]
[408863482,1774345840978,-500.0,0.00014881,2]
[408863483,1774345840987,-516.47340423,0.00014881,2]
[408863484,1774345840996,-500.0,0.00014881,2]
[408863485,1774345841006,-500.0,0.00014881,2]
[408863486,1774345841014,-500.0,0.00014881,2]
[408863487,1774345841023,-500.0,0.00014881,2]
[408863488,1774345841033,-500.0,0.00014881,2]
[408863489,1774345841042,-500.0,0.00014881,2]
[408863490,1774345841051,-500.0,0.00014881,2]
[408863491,1774345841060,-500.0,0.00014881,2]
[408863492,1774345841069,-500.0,0.00014881,2]
[408863493,1774345841078,-151.0,0.00014881,2]
[408863494,1774345841087,-500.0,0.00014881,2]
[408863495,1774345841096,-500.0,0.00014881,2]
[408863496,1774345841105,-250.0,0.00014881,2]
[408863497,1774345841115,-335.32119913,0.00014881,2]
[408863498,1774345841124,-262.90206542,0.00014881,2]
[408863499,1774345841133,-3391.82489226,0.00014907,2]
[408863500,1774345841142,-526.50753818,0.00014907,2]
[408863501,1774345841151,-500.0,0.00014936,2]
[408863502,1774345841160,-9905.5980765,0.00014936,2]
[408863503,1774345841169,-209.50441537,0.00014936,2]
[408863504,1774345841178,-355.85851684,0.00014936,2]
[408863505,1774345841187,-610.60330757,0.00014968,2]
[408863506,1774345841196,-1500.0,0.00014968,2]
[408863507,1774345841205,-500.0,0.00014991,2]
[408863508,1774345841215,-10272.10520533,0.00014991,2]
[408863509,1774345841224,-500.0,0.00015046,2]
[408863510,1774345841233,-9069.68012565,0.00015046,2]
[408863511,1774345841242,-500.0,0.00015101,2]
[408863512,1774345841252,-3391.82489226,0.00015155,2]
[408863513,1774345841261,-526.50753818,0.00015155,2]
[408863514,1774345841270,-500.0,0.00015156,2]
[408863515,1774345841279,-500.0,0.00015211,2]
[408863516,1774345841288,-500.0,0.00015266,2]
[408863517,1774345841298,-500.0,0.00015321,2]
[408863518,1774345841307,-500.0,0.00015376,2]
[408863519,1774345841317,-3391.82489226,0.00015404,2]
[408863520,1774345841326,-526.50753818,0.00015404,2]
[408863521,1774345841336,-166.66,0.00015422,2]
[408863522,1774345841345,-333.87687841,0.00015516,2]
[408863523,1774345841354,-3391.82489226,0.00015652,2]
[408863524,1774345841363,-526.50753818,0.00015652,2]
[408863525,1774345841371,-230.738189,0.0001568,7]
[408863526,1774345841380,-577.0,0.00015866,5]
[408863527,1774345841390,-534.0,0.00015866,5]
[408863528,1774345841399,-1000.0,0.00015898,2]
[408863529,1774345841408,-219.57473757,0.000159,2]
[408863530,1774345841417,-3391.82489226,0.000159,2]
[408863531,1774345841426,-526.50753818,0.000159,2]
[408863532,1774345841439,-703.0543784,0.000159,2]
[408863533,1774345841448,-500.0,0.00015973,2]
[408863534,1774345841457,-201.77324607,0.0001599,2]
[408863535,1774345841466,-201.77324607,0.0001599,2]
[408863536,1774345841476,-1401.2662912,0.00015996,2]
[408863537,1774345841485,-34873.7194626,0.00015996,2]
[408863538,1774345841494,-155.0,0.00015999,2]
[408863539,1774345841504,-4300606.54106135,0.00016,2]
[408863540,1774345841517,-1982.76593172,0.00016,2]
[408863541,1774345841527,-6411.0145618,0.00016,2]
[408863542,1774345841538,-6079.65145141,0.00016,2]
[408863543,1774345841549,-7630.80463205,0.00016,2]
[408863544,1774345841559,-518.69506017,0.00016,2]
[408863545,1774345841571,-4200.75156669,0.00016,2]
[408863546,1774345845907,-13371.4208097,0.00016,2]
[408863547,1774345845918,-672.41667813,0.00016,2]
[408863548,1774345846013,-325.58015431,0.00016,2]
[408863549,1774345846024,-638.56978047,0.00016,2]
[408863550,1774345846227,-1071.18168082,0.00016,2]
[408863567,1774347031815,-171.04,0.00010048,2]
[408863568,1774347031825,-250.0,0.00010551,2]
[408863569,1774347031834,-400.86393523,0.00011053,2]
[408863570,1774347031843,-250.0,0.00011053,2]
[408863571,1774347031852,-250.0,0.00011776,2]
[408863572,1774347031862,-97.75042306,0.00012559,2]
[408863573,1774347031874,-202.24957694,0.00012559,2]
[408863574,1774347031887,-300.75309204,0.00012559,2]
[408863575,1774347031899,-899.24690796,0.00012559,2]
[408863576,1774347031909,-2718.87281327,0.00012561,2]
[408863577,1774347031920,-1666.62718673,0.00012561,2]
[408863578,1774347031930,-842.96,0.00012561,2]
[408863579,1774347031939,-500.0,0.00012561,2]
[408863580,1774347031948,-500.0,0.00012561,2]
[408863581,1774347031958,-1072.5,0.00012661,2]
[408863582,1774347031968,-40747.83653662,0.00013366,2]
[408863583,1774347031979,-103554.34911813,0.00013366,2]
[408863584,1774347032002,-8279.3824823,0.00013366,2]
[408863585,1774347032013,-499.50294632,0.00013366,2]
[408863586,1774347032026,-2596.0,0.00013366,2]
[408863587,1774347032037,-756.18617286,0.00013366,2]
[408863589,1774347032048,-1610.89109739,0.00013366,2]
[408863590,1774347032059,-510.0,0.00013366,2]
[408863593,1774347037980,-11487.98372698,0.00013366,2]
[408863594,1774347037991,-540.01220046,0.00013366,2]
[408863595,1774347038003,-1086.4395005,0.00013366,2]
[408863596,1774347038086,-7309.1,0.00013366,2]
[408863597,1774347038097,-73500.12111129,0.00013366,2]
[408863598,1774347038141,-750.97674804,0.00013366,2]
[408863611,1774347040274,-277599.40995911,0.00013366,2]
[408863612,1774347040284,-322.59723158,0.000134,2]
[408863613,1774347040294,-599.46957167,0.000134,2]
[408863614,1774347040304,-270.50062879,0.000134,2]
[408863615,1774347040314,-465.27367346,0.000134,2]
[408863616,1774347040324,-507.8494213,0.000134,2]
[408863617,1774347040334,-535.30683316,0.000134,2]
[408863618,1774347040344,-150.0,0.000134,2]
[408863619,1774347040353,-150.0,0.00013455,2]
[408863620,1774347040362,-5533.93584235,0.00013456,2]
[408863621,1774347040371,-150.0,0.00013461,2]
[408863622,1774347040380,-151.70602932,0.00013461,2]
[408863623,1774347040390,-1000.0,0.00013465,2]
[408863624,1774347040399,-5440.14970079,0.00013466,2]
[408863625,1774347040408,-38602.0485,0.00013466,2]
[408863626,1774347040418,-2500.0,0.00013466,2]
[408863627,1774347040427,-219.57473757,0.00013466,2]
[408863628,1774347040437,-526.50753821,0.00013466,2]
[408863629,1774347040446,-392.70293566,0.00013466,2]
[408863630,1774347040456,-3542.85627676,0.00013466,2]
[408863631,1774347040465,-165.89980803,0.00013473,2]
[408863632,1774347040475,-703.05437842,0.00013473,2]
[408863633,1774347040485,-1677.78194116,0.00013473,2]
[408863634,1774347040495,-294.13685732,0.00013473,2]
[408863635,1774347040505,-201.77324607,0.00013556,2]
[408863636,1774347040514,-230.61280248,0.00013558,2]
[408863637,1774347040524,-171.5420387,0.00013565,2]
[408863638,1774347040534,-500.0,0.00013565,2]
[408863639,1774347040544,-562.62676695,0.00013565,2]
[408863640,1774347040554,-500.0,0.00013565,2]
[408863641,1774347040564,-500.0,0.00013565,2]
[408863642,1774347040574,-500.0,0.00013565,2]
[408863643,1774347040584,-500.0,0.00013565,2]
[408863644,1774347040593,-500.0,0.00013565,2]
[408863645,1774347040603,-500.0,0.00013565,2]
[408863646,1774347040612,-500.0,0.00013565,2]
[408863647,1774347040622,-500.0,0.00013565,2]
[408863648,1774347040632,-500.0,0.00013565,2]
[408863649,1774347040642,-500.0,0.00013565,2]
[408863650,1774347040651,-500.0,0.00013565,2]
[408863651,1774347040661,-500.0,0.00013565,2]
[408863652,1774347040672,-188.38579219,0.00013565,2]
[408863653,1774347040681,-500.0,0.00013565,2]
[408863654,1774347040691,-500.0,0.00013565,2]
[408863656,1774347040701,-500.0,0.00013565,2]
[408863658,1774347040710,-500.0,0.00013565,2]
[408863660,1774347040718,-500.0,0.00013565,2]
[408863662,1774347040727,-500.0,0.00013565,2]
[408863663,1774347040737,-500.0,0.00013565,2]
[408863664,1774347040747,-500.0,0.00013565,2]
[408863666,1774347040757,-500.0,0.00013565,2]
[408863668,1774347040766,-500.0,0.00013565,2]
[408863670,1774347040775,-500.0,0.00013565,2]
[408863672,1774347040785,-500.0,0.00013565,2]
[408863674,1774347040795,-500.0,0.00013565,2]
[408863676,1774347040805,-500.0,0.00013565,2]
[408863677,1774347040815,-500.0,0.00013565,2]
[408863678,1774347040825,-500.0,0.00013565,2]
[408863679,1774347040835,-500.0,0.00013565,2]
[408863680,1774347040844,-500.0,0.00013565,2]
[408863681,1774347040854,-500.0,0.00013565,2]
[408863682,1774347040863,-500.0,0.00013565,2]
[408863683,1774347040873,-500.0,0.00013565,2]
[408863684,1774347040885,-500.0,0.00013565,2]
[408863685,1774347040895,-500.0,0.00013565,2]
[408863686,1774347040904,-500.0,0.00013565,2]
[408863687,1774347040914,-500.0,0.00013565,2]
[408863688,1774347040926,-500.0,0.00013565,2]
[408863689,1774347040936,-500.0,0.00013565,2]
[408863690,1774347040945,-500.0,0.00013565,2]
[408863691,1774347040954,-564.93457505,0.00013565,2]
[408863692,1774347040967,-500.0,0.00013565,2]
[408863693,1774347040977,-500.0,0.00013565,2]
[408863694,1774347040986,-500.0,0.00013565,2]
[408863695,1774347040996,-500.0,0.00013565,2]
[408863696,1774347041005,-395.99015715,0.00013565,2]
[408863697,1774347041015,-252.39064214,0.00013565,2]
[408863698,1774347041024,-500.0,0.00013565,2]
[408863699,1774347041034,-500.0,0.00013565,2]
[408863700,1774347041043,-252.39064214,0.00013565,2]
[408863701,1774347041053,-500.0,0.00013565,2]
[408863702,1774347041062,-252.39064214,0.00013565,2]
[408863703,1774347041072,-500.0,0.00013565,2]
[408863704,1774347041082,-252.39064214,0.00013565,2]
[408863705,1774347041091,-252.39064214,0.00013565,2]
[408863706,1774347041100,-500.0,0.00013565,2]
[408863707,1774347041109,-500.0,0.00013565,2]
[408863708,1774347041118,-252.39064214,0.00013565,2]
[408863709,1774347041127,-500.0,0.00013565,2]
[408863710,1774347041137,-252.39064214,0.00013565,2]
[408863711,1774347041146,-500.0,0.00013565,2]
[408863712,1774347041155,-252.39064214,0.00013565,2]
[408863713,1774347041165,-500.0,0.00013565,2]
[408863714,1774347041174,-252.39064214,0.00013565,2]
[408863715,1774347041183,-500.0,0.00013565,2]
[408863716,1774347041192,-252.39064214,0.00013565,2]
[408863717,1774347041201,-500.0,0.00013565,2]
[408863718,1774347041211,-252.39064214,0.00013565,2]
[408863719,1774347041220,-500.0,0.00013565,2]
[408863720,1774347041229,-252.39064214,0.00013565,2]
[408863721,1774347041239,-500.0,0.00013565,2]
[408863722,1774347041248,-252.39064214,0.00013565,2]
[408863723,1774347041257,-500.0,0.00013565,2]
[408863724,1774347041267,-243.79189194,0.00013565,2]
[408863725,1774347041276,-500.0,0.00013565,2]
[408863726,1774347041286,-243.79189194,0.00013565,2]
[408863727,1774347041295,-500.0,0.00013565,2]
[408863728,1774347041304,-243.79189194,0.00013565,2]
[408863729,1774347041313,-500.0,0.00013565,2]
[408863730,1774347041323,-243.79189194,0.00013565,2]
[408863731,1774347041333,-500.0,0.00013565,2]
[408863732,1774347041343,-243.79189194,0.00013565,2]
[408863733,1774347041352,-500.0,0.00013565,2]
[408863734,1774347041361,-243.79189194,0.00013565,2]
[408863735,1774347041370,-500.0,0.00013565,2]
[408863736,1774347041379,-243.79189194,0.00013565,2]
[408863737,1774347041389,-500.0,0.00013565,2]
[408863738,1774347041398,-243.79189194,0.00013565,2]
[408863739,1774347041407,-500.0,0.00013565,2]
[408863740,1774347041416,-243.79189194,0.00013565,2]
[408863741,1774347041426,-500.0,0.00013565,2]
[408863742,1774347041435,-243.79189194,0.00013565,2]
[408863743,1774347041445,-500.0,0.00013565,2]
[408863744,1774347041454,-243.79189194,0.00013565,2]
[408863745,1774347041463,-743.79189194,0.00013565,2]
[408863746,1774347041472,-767.154,0.00013565,2]
[408863747,1774347041481,-2397059.92,0.00013566,2]
[408863748,1774347041491,-500.0,0.00013573,2]
[408863749,1774347041500,-500.0,0.00013573,2]
[408863750,1774347041510,-28386.9044,0.00013666,2]
[408863751,1774347041519,-1000.0,0.00013666,2]
[408863752,1774347041529,-529.42180418,0.00013698,2]
[408863753,1774347041538,-500.0,0.00013698,2]
[408863754,1774347041548,-623.17225997,0.00013698,2]
[408863755,1774347041557,-500.0,0.00013698,2]
[408863756,1774347041567,-500.0,0.00013698,2]
[408863757,1774347041578,-500.0,0.00013698,2]
[408863758,1774347041594,-500.0,0.00013698,2]
[408863759,1774347041603,-500.0,0.00013698,2]
[408863760,1774347041613,-500.0,0.00013698,2]
[408863761,1774347041622,-500.0,0.00013698,2]
[408863762,1774347041631,-500.0,0.00013698,2]
[408863763,1774347041640,-500.0,0.00013698,2]
[408863764,1774347041650,-563.70890882,0.00013698,2]
[408863765,1774347041659,-500.0,0.00013698,2]
[408863766,1774347041669,-500.0,0.00013698,2]
[408863767,1774347041678,-500.0,0.00013698,2]
[408863768,1774347041687,-500.0,0.00013698,2]
[408863769,1774347041697,-500.0,0.00013698,2]
[408863770,1774347041706,-500.0,0.00013698,2]
[408863771,1774347041715,-500.0,0.00013698,2]
[408863772,1774347041724,-500.0,0.00013698,2]
[408863773,1774347041734,-500.0,0.00013698,2]
[408863774,1774347041743,-405.4389704,0.00013698,2]
[408863775,1774347041752,-178.54,0.00013699,2]
[408863776,1774347041761,-171.5,0.000137,2]
[408863777,1774347041771,-178.68,0.000137,2]
[408863778,1774347041780,-162.46,0.000137,2]
[408863779,1774347041789,-156.44,0.000137,2]
[408863780,1774347041799,-466.61,0.000137,2]
[408863781,1774347041808,-4522.0441,0.00013726,2]
[408863782,1774347041817,-526.50753818,0.00013735,2]
[408863783,1774347041826,-3542.85627672,0.00013735,2]
[408863784,1774347041836,-257.73702656,0.00013765,2]
[408863785,1774347041845,-500.0,0.00013765,2]
[408863786,1774347041854,-500.0,0.00013765,2]
[408863787,1774347041865,-500.0,0.00013765,2]
[408863788,1774347041873,-500.0,0.00013765,2]
[408863789,1774347041884,-500.0,0.00013765,2]
[408863790,1774347041905,-604.01853711,0.00013765,2]
[408863791,1774347041915,-392.7029356,0.00013814,2]
[408863792,1774347041926,-1608.43,0.00013945,2]
[408863793,1774347041935,-53608.20959093,0.00013976,2]
[408863794,1774347041945,-529.0,0.00014,2]
[408863795,1774347041955,-526.50753818,0.00014005,2]
[408863796,1774347041964,-3542.85627672,0.00014005,2]
[408863797,1774347041973,-454.89793297,0.00014121,2]
[408863798,1774347041983,-842.96,0.00014131,2]
[408863799,1774347041993,-392.7029356,0.00014161,2]
[408863800,1774347042003,-526.50753818,0.00014274,2]
[408863801,1774347042013,-3542.85627672,0.00014274,2]
[408863802,1774347042022,-351.02,0.00014504,2]
[408863803,1774347042032,-9999.99,0.00014504,2]
[408863804,1774347042042,-8506.75,0.00014504,2]
[408863805,1774347042052,-9999.99,0.00014504,2]
[408863806,1774347042061,-1479.36,0.00014504,2]
[408863807,1774347042070,-65338.46,0.00014504,2]
[408863808,1774347042081,-150.99,0.00014504,2]
[408863809,1774347042090,-392.7029356,0.00014509,2]
[408863810,1774347042100,-526.50753818,0.00014543,2]
[408863811,1774347042111,-3542.85627672,0.00014543,2]
[408863812,1774347042121,-255.0,0.00014571,2]
[408863813,1774347042130,-703.0543784,0.00014687,2]
[408863814,1774347042139,-1677.78194114,0.00014687,2]
[408863815,1774347042149,-526.50753818,0.00014813,2]
[408863816,1774347042158,-3542.85627672,0.00014813,2]
[408863817,1774347042168,-392.7029356,0.00014857,2]
[408863818,1774347042178,-161.0,0.0001504,2]
[408863819,1774347042188,-178.54,0.00015068,2]
[408863820,1774347042197,-526.50753818,0.00015082,2]
[408863821,1774347042207,-3542.85627672,0.00015082,2]
[408863822,1774347042216,-500.0,0.00015194,2]
[408863823,1774347042226,-500.0,0.00015194,2]
[408863824,1774347042235,-9552.16786547,0.00015194,2]
[408863825,1774347042245,-500.0,0.00015194,2]
[408863826,1774347042258,-500.0,0.00015194,2]
[408863827,1774347042268,-500.0,0.00015194,2]
[408863828,1774347042277,-500.0,0.00015194,2]
[408863829,1774347042287,-389.04698715,0.00015194,2]
[408863830,1774347042297,-500.0,0.00015194,2]
[408863831,1774347042306,-500.0,0.00015194,2]
[408863832,1774347042316,-500.0,0.00015194,2]
[408863833,1774347042326,-500.0,0.00015194,2]
[408863834,1774347042335,-500.0,0.00015194,2]
[408863835,1774347042345,-500.0,0.00015194,2]
[408863836,1774347042355,-500.0,0.00015194,2]
[408863843,1774347042714,-500.0,0.00015194,2]
[408863844,1774347042738,-516.47340423,0.00015194,2]
[408863845,1774347042747,-500.0,0.00015194,2]
[408863846,1774347042757,-500.0,0.00015194,2]
[408863847,1774347042767,-151.0,0.00015194,2]
[408863848,1774347042777,-500.0,0.00015194,2]
[408863849,1774347042786,-500.0,0.00015194,2]
[408863850,1774347042795,-250.0,0.00015194,2]
[408863851,1774347042805,-335.32119913,0.00015194,2]
[408863852,1774347042815,-262.90206542,0.00015194,2]
[408863853,1774347042824,-392.7029356,0.00015205,2]
[408863854,1774347042834,-500.0,0.00015249,2]
[408863855,1774347042844,-9905.5980765,0.00015249,2]
[408863856,1774347042854,-151.0,0.00015249,2]
[408863857,1774347042863,-355.85851684,0.00015249,2]
[408863858,1774347042873,-500.0,0.00015304,2]
[408863859,1774347042887,-10272.10520533,0.00015304,2]
[408863860,1774347042896,-209.50441537,0.00015304,2]
[408863861,1774347042905,-526.50753818,0.00015351,2]
[408863862,1774347042914,-500.0,0.00015359,2]
[408863863,1774347042923,-10652.17309792,0.00015359,2]
[408863864,1774347042934,-500.0,0.00015414,2]
[408863865,1774347042946,-7969.6748932,0.00015414,2]
[408863866,1774347042956,-443.2,0.00015419,2]
[408863867,1774347042965,-500.0,0.00015469,2]
[408863868,1774347042974,-4000.0,0.00015507,2]
[408863869,1774347042984,-500.0,0.00015524,2]
[408863870,1774347042994,-392.7029356,0.00015552,2]
[408863871,1774347043004,-500.0,0.00015579,2]
[408863872,1774347043013,-526.50753818,0.00015621,2]
[408863873,1774347043023,-500.0,0.00015634,2]
[408863874,1774347043033,-1080.0250559,0.0001568,2]
[408863875,1774347043043,-1038.1836208,0.0001568,2]
[408863876,1774347043054,-1094.37475558,0.0001568,2]
[408863877,1774347043064,-500.0,0.00015689,2]
[408863878,1774347043074,-842.96,0.00015701,2]
[408863879,1774347043083,-500.0,0.00015744,2]
[408863880,1774347043092,-433.0,0.00015782,2]
[408863881,1774347043101,-556.0,0.00015866,5]
[408863882,1774347043110,-445.0,0.00015866,5]
[408863883,1774347043119,-526.50753818,0.0001589,2]
[408863884,1774347043128,-2000.0,0.0001589,2]
[408863885,1774347043137,-4000.0,0.00015895,2]
[408863886,1774347043148,-466.61,0.000159,2]
[408863887,1774347043157,-219.57473757,0.000159,2]
[408863888,1774347043167,-703.0543784,0.000159,2]
[408863889,1774347043175,-392.7029356,0.000159,2]
[408863890,1774347043184,-500.0,0.00015973,2]
[408863891,1774347043193,-500.0,0.00015973,2]
[408863892,1774347043203,-547.70188919,0.00015973,2]
[408863893,1774347043212,-500.0,0.00015973,2]
[408863894,1774347043220,-500.0,0.00015973,2]
[408863895,1774347043229,-500.0,0.00015973,2]
[408863896,1774347043239,-214.75693323,0.00015973,2]
[408863897,1774347043249,-500.0,0.00015973,2]
[408863898,1774347043258,-348.67349795,0.00015973,2]
[408863899,1774347043267,-201.77324607,0.0001598,2]
[408863900,1774347043276,-891986.9973169,0.0001599,2]
[408863901,1774347043285,-3302.4919291,0.0001599,2]
[408863902,1774347043295,-271.02594,0.0001599,2]
[408863903,1774347043305,-151.0,0.0001599,2]
[408863904,1774347043315,-3024.1851172,0.0001599,2]
[408863905,1774347043325,-82190.0717849,0.0001599,2]
[408863906,1774347043334,-151.0,0.0001599,2]
[408863907,1774347043343,-201.77324607,0.0001599,2]
[408863908,1774347043352,-155.0,0.00015999,2]
[408863909,1774347043361,-1008667.65840886,0.00016,2]
[408863910,1774347043381,-4913.35357007,0.00016,2]
[408863911,1774347043398,-506.93,0.00016,2]
[408863917,1774347045641,-500.0,0.00013698,2]
[408863918,1774347045652,-124.68867735,0.00013699,2]
[408863919,1774347045702,-230.02132265,0.00013699,2]
[408863920,1774347045713,-294.13685732,0.00014687,2]
[408863921,1774347045722,-3542.85627672,0.00015351,2]
[408863922,1774347045733,-1677.78194114,0.000159,2]
[408863923,1774347045743,-1419655.20360242,0.00016,2]
[408863926,1774347045814,-500.0,0.00013365,2]
[408863927,1774347045824,-252.82551689,0.00016,2]
[408863928,1774347045867,-21275.52357828,0.00016,2]
[408863935,1774347045979,-35662.3041938,0.00016,2]
[408863937,1774347045990,-21544.99940015,0.00016,2]
[408863960,1774347046145,-1141.6,0.00016,2]
[408863962,1774347046156,-1826.80243167,0.00016,2]
[408863972,1774347046282,-2005.77517545,0.00016,2]
[408863977,1774347202534,-300.0,0.00013265,2]
[408863978,1774347202590,-9100.01,0.00013266,2]
[408863979,1774347220963,153.0,7.139e-05,2]